bitfinex/quotes_ETHUSD_20250411
["timestamp","ask_amount","ask_price","bid_price","bid_amount"]
[1744334902071,7.10023,1526.7,1526.4,6.55132]
[1744334902873,0.55,1526.5,1526.2,6.55217]
[1744334903234,0.55,1526.5,1526.2,6.55204]
[1744334903461,0.55,1526.5,1526.2,7.285114]
[1744334903768,7.10099,1526.5,1526.2,7.285114]
[1744334903944,0.55,1526.5,1526.2,13.837144]
[1744334904145,0.55,1526.5,1526.2,7.285104]
[1744334904464,7.10106,1526.5,1526.2,6.55203]
[1744334905274,6.55223,1526.2,1525.9,6.55336]
[1744334905595,6.55139,1526.4,1526.0,6.55291]
[1744334905740,7.31088,1526.5,1526.1,7.33109]
[1744334905939,7.31088,1526.5,1526.1,13.88351]
[1744334906276,0.7598,1526.5,1526.2,6.55218]
[1744334906638,7.31081,1526.5,1526.2,6.55218]
[1744334908286,0.55,1526.6,1526.3,6.55166]
[1744334908454,0.55,1526.6,1526.3,6.55165]
[1744334908856,7.10053,1526.6,1526.3,6.55165]
[1744334909069,0.7561,1526.5,1526.2,1.388345]
[1744334909239,0.55,1526.4,1526.1,6.55259]
[1744334909439,7.10156,1526.4,1526.1,6.55259]
[1744334909681,6.55185,1526.3,1526.0,6.553]
[1744334910533,0.7561,1526.2,1526.0,6.553]
[1744334910989,7.10156,1526.4,1526.0,6.55292]
[1744334910990,0.7561,1526.3,1526.0,6.55292]
[1744334911151,0.7561,1526.3,1526.1,6.55257]
[1744334911978,0.7561,1526.3,1526.0,7.284752]
[1744334912271,0.55,1526.2,1525.9,13.87228]
[1744334912471,0.55,1526.2,1525.9,7.31884]
[1744334912676,0.55,1526.2,1525.9,6.55344]
[1744334912854,7.10227,1526.2,1525.9,6.55344]
[1744334913371,0.55,1526.2,1525.9,6.55335]
[1744334913564,0.55,1526.2,1525.9,8.019625]
[1744334913770,0.55,1526.2,1526.0,6.55293]
[1744334915002,0.7561,1526.3,1526.0,6.55289]
[1744334915204,0.55,1526.4,1526.1,13.105]
[1744334915406,1.3061,1526.4,1526.1,6.5525]
[1744334915587,7.8575,1526.4,1526.1,6.5525]
[1744334916306,7.8575,1526.4,1526.1,13.10499]
[1744334916511,7.8575,1526.4,1526.1,6.55249]
[1744334917100,7.8575,1526.4,1526.1,13.10495]
[1744334917312,7.8575,1526.4,1526.1,6.55246]
[1744334918704,1.3061,1526.4,1526.1,13.10495]
[1744334920504,1.3061,1526.4,1526.1,13.10496]
[1744334920709,1.3061,1526.4,1526.1,13.87037]
[1744334921291,1.3061,1526.4,1526.1,7.31786]
[1744334921905,0.55,1526.2,1525.9,13.91021]
[1744334922084,0.55,1526.2,1525.9,7.35684]
[1744334922413,0.55,1526.0,1525.6,6.55462]
[1744334922716,0.55,1526.0,1525.8,6.55393]
[1744334922905,0.55,1526.0,1525.8,13.10786]
[1744334923833,0.55,1526.0,1525.7,7.35778]
[1744334924137,0.55,1526.0,1525.5,11.02921205]
[1744334924285,0.55,1525.8,1525.5,8.1385]
[1744334924490,0.823,1526.3,1525.7,11.05201205]
[1744334924723,0.823,1526.4,1526.1,6.55249]
[1744334924927,6.55055,1526.6,1526.0,0.8035]
[1744334925085,0.823,1526.5,1526.2,6.55194]
[1744334925292,6.5518,1526.3,1526.0,7.35657]
[1744334925594,13.65325,1526.4,1526.0,7.3564]
[1744334926027,7.37501,1526.3,1525.9,13.10672]
[1744334926321,0.55,1526.2,1526.0,13.10572]
[1744334926526,0.55,1526.2,1526.0,6.55286]
[1744334926730,0.55,1526.2,1526.0,7.208146]
[1744334927495,0.55,1526.2,1526.1,0.8035]
[1744334928750,0.823,1526.4,1526.1,7.35615]
[1744334930353,0.55,1526.4,1526.1,7.35615]
[1744334930528,0.55,1526.4,1526.1,13.9086]
[1744334930714,0.55,1526.4,1526.2,6.55214]
[1744334931651,0.55,1526.4,1526.1,8.8123386]
[1744334931861,7.10136,1526.4,1526.1,7.35595]
[1744334932227,13.65299,1526.4,1526.1,0.8035]
[1744334932653,13.65299,1526.4,1526.0,6.55303]
[1744334932831,0.55,1526.4,1526.1,7.3561]
[1744334933351,7.10167,1526.4,1526.0,7.35654]
[1744334933557,7.10167,1526.4,1526.0,8.092194]
[1744334933856,7.10167,1526.4,1526.0,14.645234]
[1744334934152,6.5526,1526.2,1526.0,0.8035]
[1744334934340,7.10153,1526.4,1526.0,6.55284]
[1744334934519,0.55,1526.2,1526.0,6.55284]
[1744334935152,0.55,1526.2,1526.0,13.10578]
[1744334935453,0.55,1526.2,1526.1,6.55265]
[1744334936551,0.55,1526.2,1526.0,13.10576]
[1744334936757,0.55,1526.2,1526.0,6.55284]
[1744334936967,0.55,1526.2,1526.0,13.10577]
[1744334937256,0.55,1526.2,1525.9,13.91025]
[1744334937558,1.326,1526.2,1525.9,13.1067]
[1744334938549,6.55305,1526.1,1525.7,13.86626]
[1744334938752,0.55,1525.9,1525.6,13.10934]
[1744334938955,0.55,1525.9,1525.6,13.86714]
[1744334939455,0.55,1525.9,1525.7,6.55429]
[1744334940459,6.55266,1526.1,1525.7,7.940904]
[1744334940660,0.776,1526.2,1525.9,6.5535]
[1744334940955,13.8808,1526.2,1525.9,0.7578]
[1744334941159,6.936,1526.3,1525.8,4.45201205]
[1744334941361,6.16,1526.3,1526.1,7.31014]
[1744334941535,7.32695,1526.5,1526.2,6.55222]
[1744334941737,0.55,1526.4,1526.2,6.55222]
[1744334941938,0.55,1526.4,1526.1,13.86262]
[1744334942325,0.55,1526.4,1526.2,6.55206]
[1744334943530,0.55,1526.4,1526.1,7.31038]
[1744334943744,7.1014,1526.4,1526.1,7.31038]
[1744334944568,0.55,1526.4,1526.1,7.31026]
[1744334945068,0.55,1526.4,1526.1,13.86277]
[1744334946072,7.10136,1526.4,1526.1,7.31026]
[1744334946267,7.10136,1526.4,1526.1,6.55246]
[1744334947065,0.55,1526.4,1526.1,13.10496]
[1744334947767,0.55,1526.4,1526.1,6.55246]
[1744334947995,3.4945233,1526.8,1526.6,6.55034]
[1744334947996,0.776,1526.8,1526.6,6.55034]
[1744334948142,0.776,1527.0,1526.8,6.5495]
[1744334948343,0.776,1527.2,1526.9,13.09842]
[1744334948655,0.55,1527.1,1526.9,13.09842]
[1744334948844,0.55,1527.1,1526.9,6.54921]
[1744334949171,0.55,1527.1,1526.8,6.54956]
[1744334949563,8.056338,1527.2,1526.8,13.09898]
[1744334949766,0.55,1527.1,1526.8,13.09898]
[1744334950493,0.55,1527.1,1526.9,6.54896]
[1744334950811,6.55668,1527.5,1527.1,6.54815]
[1744334950966,13.91022,1527.5,1527.1,6.54815]
[1744334951164,6.54711,1527.4,1527.0,7.32982]
[1744334951490,6.54836,1527.1,1526.8,7.3308]
[1744334951664,7.35496,1527.1,1526.7,7.04009699]
[1744334951863,0.55,1527.0,1526.7,13.09996]
[1744334952281,0.55,1527.0,1526.7,6.54993]
[1744334952577,0.55,1527.0,1526.7,13.09978]
[1744334952902,6.54937,1526.9,1526.6,8.1042]
[1744334953067,0.55,1526.8,1526.6,7.323]
[1744334953267,0.55,1526.8,1526.5,6.55059]
[1744334953567,1.3566,1526.8,1526.5,6.55059]
[1744334953891,1.3566,1526.8,1526.5,13.1013]
[1744334954078,1.3566,1526.8,1526.5,6.55059]
[1744334955799,1.3566,1526.8,1526.5,13.10131]
[1744334956007,1.3566,1526.8,1526.5,13.10138]
[1744334956491,1.3566,1526.8,1526.5,6.55059]
[1744334959214,7.90626,1526.8,1526.5,6.55059]
[1744334960683,1.3566,1526.8,1526.5,13.10132]
[1744334961007,1.3566,1526.8,1526.5,14.53961523]
[1744334962211,1.3566,1526.8,1526.5,7.98888523]
[1744334962513,7.90629,1526.8,1526.5,6.55059]
[1744334964117,7.90629,1526.8,1526.5,13.10134]
[1744334964420,1.3566,1526.8,1526.5,13.10134]
[1744334964633,1.3566,1526.8,1526.5,6.55059]
[1744334964841,0.55,1526.8,1526.6,6.55027]
[1744334965137,7.3368,1527.0,1526.7,6.55006]
[1744334965329,0.55,1526.9,1526.7,6.55006]
[1744334965851,0.55,1526.9,1526.6,6.55027]
[1744334966137,7.09938,1526.9,1526.6,6.55027]
[1744334968043,13.64902,1526.9,1526.5,10.24507205]
[1744334968247,0.55,1526.9,1526.7,6.55006]
[1744334970236,0.55,1526.9,1526.6,14.9255672]
[1744334970432,0.55,1526.9,1526.6,8.3752172]
[1744334970639,6.54995,1526.8,1526.5,6.55085]
[1744334970802,7.09927,1526.9,1526.6,6.5504]
[1744334971238,13.64873,1526.9,1526.5,6.55085]
[1744334971543,13.64873,1526.9,1526.5,13.88677823]
[1744334972137,13.64868,1526.9,1526.5,13.88677823]
[1744334972757,0.788,1527.0,1526.5,4.47938028]
[1744334972945,0.788,1527.0,1526.7,6.5497]
[1744334973716,0.788,1527.0,1526.7,13.09941]
[1744334973922,0.788,1527.0,1526.7,7.939681]
[1744334974124,0.55,1526.9,1526.6,6.55048]
[1744334975656,7.09923,1526.9,1526.6,6.55048]
[1744334976956,7.33716,1527.0,1526.7,6.55004]
[1744334977463,7.33716,1527.0,1526.8,6.54949]
[1744334977464,0.788,1527.0,1526.8,6.54949]
[1744334978973,0.788,1527.0,1526.7,6.54994]
[1744334979141,7.33678,1527.0,1526.7,6.54994]
[1744334979468,0.788,1527.0,1526.7,13.09988]
[1744334979695,0.788,1527.0,1526.7,14.409868]
[1744334982043,0.788,1527.0,1526.7,14.409818]
[1744334982444,0.788,1527.0,1526.7,1.309988]
[1744334982445,13.8859,1527.0,1526.7,1.309988]
[1744334982659,13.8859,1527.0,1526.6,13.10086]
[1744334982978,7.09926,1526.9,1526.5,21.99621823]
[1744334983179,7.09926,1526.9,1526.6,7.15809719]
[1744334983411,7.09926,1526.9,1526.6,13.70844719]
[1744334983675,7.33686,1527.0,1526.6,2.86791873]
[1744334983983,7.33686,1527.0,1526.7,6.54993]
[1744334984279,7.33686,1527.0,1526.7,13.09986]
[1744334984754,7.33686,1527.0,1526.7,6.54993]
[1744334985277,7.33686,1527.0,1526.7,6.55001]
[1744334985453,0.788,1527.0,1526.8,6.54956]
[1744334985841,0.788,1527.0,1526.7,8.08600515]
[1744334986155,0.788,1527.0,1526.7,6.54993]
[1744334986367,0.788,1527.0,1526.7,13.09987]
[1744334986567,0.788,1527.0,1526.8,6.54962]
[1744334987175,7.3368,1527.0,1526.7,6.54993]
[1744334988284,6.54921,1526.9,1526.6,8.81078154]
[1744334988778,0.55,1526.9,1526.7,6.55006]
[1744334990101,0.55,1526.9,1526.6,8.81078154]
[1744334990391,7.09928,1526.9,1526.6,8.81078154]
[1744334990596,7.09928,1526.9,1526.6,15.36114154]
[1744334991095,7.09928,1526.9,1526.6,8.81066154]
[1744334991301,7.09928,1526.9,1526.6,6.55036]
[1744334991995,7.33689,1527.0,1526.6,6.55031]
[1744334992367,7.33689,1527.0,1526.7,6.54989]
[1744334992571,13.8861,1527.0,1526.7,6.54989]
[1744334992792,7.09925,1526.9,1526.6,6.55031]
[1744334993397,0.7664,1526.7,1526.5,7.309]
[1744334994273,0.7664,1526.7,1526.5,13.85992]
[1744334994896,1.3164,1526.8,1526.5,20.41067]
[1744334995077,1.3164,1526.8,1526.6,6.55045]
[1744334995500,1.3164,1526.8,1526.5,6.55075]
[1744334996299,7.86606,1526.8,1526.5,6.55075]
[1744334997100,14.4159,1526.8,1526.5,6.55075]
[1744334997298,0.7943,1526.5,1526.2,13.1041]
[1744334997504,0.55,1526.4,1526.0,17.38399813]
[1744334997686,6.55193,1526.3,1526.0,6.30565608]
[1744334997887,7.34623,1526.3,1526.0,8.74878024]
[1744334998587,7.34623,1526.3,1526.0,15.30185024]
[1744334999801,1.3443,1526.4,1526.0,8.74878024]
[1744335000016,0.55,1526.4,1526.2,6.55196]
[1744335000583,0.55,1526.4,1526.0,10.24721205]
[1744335000900,7.1017,1526.4,1526.0,16.80015205]
[1744335002100,7.10165,1526.4,1526.0,10.24713205]
[1744335002331,7.10165,1526.4,1526.1,6.55257]
[1744335002788,13.50438,1526.7,1526.2,0.8311]
[1744335002992,6.9543,1526.7,1526.2,4.52531205]
[1744335003193,6.9543,1526.7,1526.3,6.55179]
[1744335003426,13.5046,1526.7,1526.3,6.55179]
[1744335003606,6.9543,1526.7,1526.3,1.7629232]
[1744335003823,6.9543,1526.7,1526.4,6.55115]
[1744335004627,6.9543,1526.7,1526.4,13.10237]
[1744335004833,7.34329,1527.0,1526.6,10.24440205]
[1744335004994,0.7943,1527.0,1526.7,6.54974]
[1744335005489,0.7943,1527.2,1526.9,6.5489]
[1744335005722,6.54868,1527.1,1526.7,8.22934921]
[1744335005937,6.54902,1527.0,1526.6,10.7341109]
[1744335006095,6.54902,1527.0,1526.6,17.2844509]
[1744335006520,6.54902,1527.0,1526.6,10.7341109]
[1744335006725,6.54902,1527.0,1526.6,17.2843909]
[1744335006938,6.54902,1527.0,1526.6,20.43153999]
[1744335007431,0.7943,1526.9,1526.6,13.88125999]
[1744335007731,0.7943,1526.9,1526.6,20.43153999]
[1744335008458,0.55,1526.8,1526.6,6.84136114]
[1744335008640,7.0997,1526.8,1526.5,6.06]
[1744335008935,7.34356,1526.9,1526.6,6.55036]
[1744335008936,0.7943,1526.9,1526.6,6.55036]
[1744335009132,0.7943,1526.9,1526.6,16.21732021]
[1744335009329,7.89315,1527.0,1526.6,16.21732021]
[1744335009638,7.34231,1527.2,1526.9,6.54906]
[1744335009849,7.34241,1527.2,1526.8,6.54942]
[1744335010013,7.34241,1527.2,1526.8,13.09892]
[1744335010214,7.34241,1527.2,1526.8,8.22873321]
[1744335010411,6.54892,1527.0,1526.8,1.67931321]
[1744335010629,7.34366,1526.9,1526.5,16.80092377]
[1744335010811,7.34366,1526.9,1526.5,6.06]
[1744335010812,6.55015,1526.7,1526.5,6.06]
[1744335011135,0.55,1526.7,1526.4,10.24542205]
[1744335011313,7.10028,1526.7,1526.4,10.24550205]
[1744335011515,7.10028,1526.7,1526.4,11.92523026]
[1744335012142,13.65057,1526.7,1526.4,5.37394026]
[1744335012415,6.55093,1526.5,1526.2,10.98921205]
[1744335012633,6.55138,1526.4,1526.1,2.61080132]
[1744335012840,0.7913,1526.3,1526.1,1.67997021]
[1744335013416,7.34334,1526.3,1526.1,1.67997021]
[1744335013935,0.7913,1526.3,1526.1,1.67997021]
[1744335014749,0.7913,1526.3,1526.1,8.23245021]
[1744335014926,0.55,1526.4,1526.1,8.23245021]
[1744335015451,7.10149,1526.4,1526.1,1.67997021]
[1744335016015,13.65309,1526.4,1526.0,11.50582294]
[1744335016343,13.65309,1526.4,1526.0,10.73882294]
[1744335016942,0.7913,1526.5,1526.0,4.18589294]
[1744335017119,0.7913,1526.5,1526.2,6.55184]
[1744335017448,7.89196,1526.6,1526.3,6.55164]
[1744335017649,9.55009,1526.7,1526.5,6.55061]
[1744335017650,0.7913,1526.7,1526.5,6.55061]
[1744335017855,13.4997,1527.1,1526.7,6.54992]
[1744335018050,13.8883,1527.1,1526.7,7.31692]
[1744335018419,0.55,1527.0,1526.7,7.31692]
[1744335018615,13.8883,1527.1,1526.7,7.31692]
[1744335018913,6.54898,1527.0,1526.7,7.31692]
[1744335019138,6.54898,1527.0,1526.7,6.54992]
[1744335019560,7.3397,1527.1,1526.3,2.077348]
[1744335019561,0.7913,1526.8,1526.3,2.077348]
[1744335019711,0.55,1526.7,1526.3,2.077348]
[1744335019917,0.55,1526.7,1526.5,6.55076]
[1744335020819,0.55,1526.7,1526.5,6.55074]
[1744335021048,0.55,1526.7,1526.4,7.04845537]
[1744335021253,0.55,1526.7,1526.4,14.88175691]
[1744335021752,0.7913,1526.8,1526.6,6.55042]
[1744335021924,0.7913,1527.0,1526.7,6.54991]
[1744335022315,0.7913,1527.0,1526.8,6.54959]
[1744335022918,0.7913,1527.0,1526.7,6.54991]
[1744335023119,0.7913,1527.0,1526.6,0.767]
[1744335023120,0.55,1526.9,1526.6,6.55033]
[1744335023449,0.55,1526.9,1526.6,8.2298732]
[1744335023749,0.55,1526.9,1526.7,6.55004]
[1744335023930,7.09927,1526.9,1526.6,8.2298332]
[1744335024130,13.64888,1526.9,1526.5,6.55089]
[1744335025155,6.54991,1526.8,1526.4,15.11042537]
[1744335025318,6.54991,1526.8,1526.4,21.66159537]
[1744335025519,6.54991,1526.8,1526.5,6.55087]
[1744335026117,7.34121,1526.8,1526.5,6.55087]
[1744335026320,7.34121,1526.8,1526.2,0.8276]
[1744335026321,0.55,1526.7,1526.2,0.8276]
[1744335026544,7.10152,1526.4,1526.1,6.55247]
[1744335027559,0.55,1526.4,1526.2,6.5522]
[1744335028482,0.7754,1526.5,1526.2,14.13734004]
[1744335028666,0.7754,1526.5,1526.2,7.58514004]
[1744335028824,0.7754,1526.5,1526.2,6.5522]
[1744335029852,7.32641,1526.5,1526.2,6.5522]
[1744335031363,0.7754,1526.5,1526.2,6.55222]
[1744335031542,0.7754,1526.5,1526.3,6.55164]
[1744335031865,0.7754,1526.7,1526.4,6.55136]
[1744335032165,0.7754,1526.7,1526.2,6.55217]
[1744335032380,13.10172,1526.6,1526.2,6.55217]
[1744335033371,6.55077,1526.6,1526.2,13.10434]
[1744335033874,6.55077,1526.6,1526.2,6.55217]
[1744335033875,13.10149,1526.6,1526.2,6.55217]
[1744335034578,7.32636,1526.5,1526.2,6.55217]
[1744335034873,0.55,1526.4,1526.2,6.55217]
[1744335035077,0.55,1526.4,1526.1,13.10504]
[1744335036571,0.7754,1526.5,1526.3,6.55161]
[1744335036962,0.7754,1526.5,1526.3,13.10321]
[1744335037158,0.7754,1526.7,1526.4,13.10272]
[1744335037358,0.7754,1526.7,1526.4,6.55136]
[1744335038075,0.7754,1526.7,1526.5,6.55075]
[1744335038276,0.55,1526.8,1526.6,6.5505]
[1744335038440,0.7754,1527.1,1527.0,6.54878]
[1744335038643,0.7754,1527.4,1527.1,6.54812]
[1744335038949,0.7754,1527.4,1526.9,3.69421205]
[1744335038950,0.7754,1527.4,1527.3,6.5475]
[1744335039175,6.17,1527.5,1527.2,6.5479]
[1744335039342,0.56,1527.5,1527.2,6.5479]
[1744335039543,0.01,1527.5,1527.2,6.5479]
[1744335039741,0.744663,1527.5,1527.2,6.5479]
[1744335040375,0.744663,1527.5,1527.2,13.09566]
[1744335040573,0.01,1527.5,1527.3,6.54744]
[1744335041081,0.01,1527.5,1527.4,6.54707]
[1744335042141,0.01,1527.5,1527.4,7.37747]
[1744335042748,0.01,1527.5,1527.4,0.8304]
[1744335042969,0.01,1527.5,1527.4,6.54707]
[1744335043285,0.01,1527.5,1527.4,8.95392921]
[1744335044094,0.01,1527.5,1527.4,13.51557969]
[1744335044384,0.01,1527.5,1527.4,16.51557969]
[1744335045187,0.3863513,1528.0,1527.9,10.37533]
[1744335045385,0.1,1528.4,1527.9,10.37533]
[1744335045386,0.1,1528.4,1528.3,6.54321]
[1744335045562,0.1,1528.4,1528.3,21.38486048]
[1744335046175,0.1086421,1529.0,1528.8,6.54076]
[1744335046361,0.1086421,1529.0,1528.8,13.08166]
[1744335046568,6.5408,1528.9,1528.5,13.08436]
[1744335046771,0.65408,1528.8,1528.5,6.54211]
[1744335047176,6.5408,1528.9,1528.5,13.08423]
[1744335047380,0.1086421,1529.0,1528.7,13.08277]
[1744335047690,0.1086421,1529.0,1528.6,0.8304]
[1744335047886,0.1086421,1529.0,1528.9,6.54065]
[1744335049085,0.1086421,1529.0,1528.8,6.54068]
[1744335049264,0.1086421,1529.0,1528.9,6.54065]
[1744335052764,0.1086421,1529.0,1528.8,6.54068]
[1744335052765,0.1086421,1529.0,1528.8,13.0815]
[1744335053286,0.1086421,1529.0,1528.8,13.0816]
[1744335053522,0.1086421,1529.0,1528.9,6.54065]
[1744335054164,0.1086421,1529.0,1528.8,6.54068]
[1744335054414,0.1086421,1529.0,1528.9,7.194718]
[1744335055853,0.1086421,1529.0,1528.9,8.025118]
[1744335057163,0.1086421,1529.0,1528.9,14.75636848]
[1744335057391,0.3863513,1529.5,1529.4,9.53851]
[1744335058177,0.3863513,1529.5,1529.3,7.272]
[1744335058384,0.3863513,1529.5,1529.4,6.53851]
[1744335059295,0.3863513,1529.5,1529.3,13.81052]
[1744335060086,0.3863513,1529.5,1529.3,20.34924]
[1744335060283,0.3863513,1529.5,1529.4,6.53851]
[1744335060698,0.3863513,1529.5,1529.4,7.32041]
[1744335060893,0.3863513,1529.5,1529.4,9.48161663]
[1744335061806,0.3863513,1529.5,1529.4,2.94310663]
[1744335061959,0.3863513,1529.5,1529.4,2.16120663]
[1744335062154,0.3863513,1529.5,1529.4,6.53851]
[1744335063101,13.85299,1529.4,1529.0,6.54008]
[1744335063286,0.7754,1529.4,1529.0,6.54001]
[1744335063486,6.54005,1529.1,1528.7,6.54126]
[1744335063687,1.3254,1529.0,1528.7,6.54126]
[1744335063894,7.86588,1529.0,1528.5,62.64716]
[1744335064207,0.55,1528.7,1528.3,7.32504]
[1744335064373,0.7754,1528.6,1528.3,6.54296]
[1744335064569,0.7754,1528.6,1528.2,13.80261]
[1744335064808,0.55,1528.5,1528.2,7.259]
[1744335065011,13.6351,1528.5,1528.2,8.717491]
[1744335065182,13.6351,1528.5,1528.2,7.259]
[1744335065564,13.6351,1528.5,1528.0,14.61034212]
[1744335065771,6.54466,1528.0,1527.8,6.30565608]
[1744335065980,6.54466,1528.0,1527.4,14.58796]
[1744335065981,13.09025,1527.9,1527.4,14.58796]
[1744335066199,0.55,1528.0,1527.1,7.43279445]
[1744335066401,6.54707,1527.5,1527.1,1.27029786]
[1744335066571,0.55,1527.5,1527.1,10.33023]
[1744335066773,0.55,1527.5,1527.2,1.033023]
[1744335067197,0.7754,1527.9,1527.2,1.033023]
[1744335067398,0.7754,1527.9,1527.4,6.54688]
[1744335067599,0.7754,1527.9,1527.5,6.54659]
[1744335068207,7.32039,1527.9,1527.4,13.09363]
[1744335068506,7.32039,1527.9,1527.4,6.54675]
[1744335069001,7.32039,1527.9,1527.5,6.54661]
[1744335069169,6.54579,1527.7,1527.3,6.54748]
[1744335069372,0.55,1527.8,1527.1,0.7819]
[1744335069614,6.54739,1527.4,1527.0,7.259]
[1744335069986,6.54739,1527.4,1527.0,13.8077]
[1744335070188,0.55,1527.3,1527.0,7.259]
[1744335070385,6.54793,1527.2,1526.7,7.33193]
[1744335070716,7.09842,1527.1,1526.7,6.54985]
[1744335071015,6.5488,1527.0,1526.6,6.55046]
[1744335071232,6.5488,1527.0,1526.5,3.0]
[1744335071233,0.55,1526.8,1526.5,6.55091]
[1744335071435,7.3321,1527.0,1526.5,1.388415]
[1744335071735,0.771,1527.3,1526.7,3.73125048]
[1744335071917,0.771,1527.6,1527.0,3.0]
[1744335072123,13.86148,1527.9,1527.4,13.09363]
[1744335072297,6.54549,1527.8,1527.4,6.54676]
[1744335072494,7.31596,1527.9,1527.4,8.582382]
[1744335072723,7.31596,1527.9,1527.5,6.54645]
[1744335073124,6.54453,1528.0,1527.6,6.54621]
[1744335074319,6.54409,1528.1,1527.7,6.54571]
[1744335074510,0.55,1528.0,1527.6,6.54596]
[1744335074713,13.63956,1528.0,1527.7,0.654596]
[1744335074908,6.54471,1528.0,1527.7,0.654596]
[1744335075209,13.08858,1528.1,1527.7,0.654596]
[1744335075409,7.09452,1528.0,1527.7,0.654596]
[1744335075659,7.0946,1528.0,1527.4,2.035622]
[1744335075800,7.09595,1527.7,1527.3,10.262]
[1744335076138,0.55,1527.7,1527.4,6.54705]
[1744335076837,0.55,1527.7,1527.4,13.09394]
[1744335077132,0.55,1527.7,1527.4,6.54689]
[1744335077386,0.55,1527.7,1527.4,8.582525]
[1744335077835,0.55,1527.8,1527.5,6.54636]
[1744335078042,0.771,1527.9,1527.6,6.54617]
[1744335078227,7.31512,1528.1,1527.7,6.54573]
[1744335078427,7.31512,1528.1,1527.7,13.09135]
[1744335078797,7.31512,1528.1,1527.7,6.54562]
[1744335079000,0.55,1528.0,1527.4,2.035635]
[1744335079199,6.5456,1527.8,1527.4,8.582645]
[1744335079538,6.5456,1527.8,1527.4,2.035635]
[1744335079845,13.0913,1527.8,1527.4,8.582465]
[1744335080041,0.771,1527.7,1527.4,8.582465]
[1744335080897,0.55,1527.8,1527.5,0.8582465]
[1744335081105,7.31553,1528.0,1527.6,6.54587]
[1744335081300,7.31553,1528.0,1527.6,13.0919]
[1744335082004,0.771,1528.0,1527.7,6.54557]
[1744335082201,6.54365,1528.2,1527.8,6.54506]
[1744335082446,6.54365,1528.2,1527.9,6.54483]
[1744335082627,6.16,1528.5,1528.0,7.198943]
[1744335082628,6.5428,1528.4,1528.0,7.198943]
[1744335082938,0.771,1528.5,1528.2,6.54354]
[1744335083103,6.54193,1528.6,1528.2,6.54354]
[1744335083303,0.771,1528.7,1528.3,6.54311]
[1744335083558,7.31283,1528.7,1528.3,6.54304]
[1744335083714,7.31124,1529.0,1528.6,6.54193]
[1744335084158,7.31124,1529.0,1528.2,0.7933]
[1744335084159,7.09066,1528.9,1528.2,0.7933]
[1744335084319,13.08591,1528.4,1528.0,6.5444]
[1744335084640,7.31242,1528.8,1528.1,7.265]
[1744335084807,6.54165,1528.7,1528.4,6.54277]
[1744335085008,6.54253,1528.5,1528.1,13.80886]
[1744335085405,6.54157,1528.7,1528.2,6.5434]
[1744335085742,6.54157,1528.7,1528.3,13.08602]
[1744335087010,0.55,1528.7,1528.4,6.54268]
[1744335087210,13.80529,1529.0,1528.6,6.54177]
[1744335087538,0.55,1528.9,1528.4,1.308567]
[1744335087742,6.5417,1528.7,1528.3,13.88051]
[1744335088808,7.09072,1528.9,1528.4,6.54268]
[1744335089106,7.09072,1528.9,1528.5,6.54217]
[1744335089442,7.09072,1528.9,1528.5,13.08434]
[1744335089638,7.09072,1528.9,1528.5,6.54217]
[1744335089843,7.09072,1528.9,1528.5,7.850663]
[1744335090545,7.30833,1529.1,1528.7,6.54113]
[1744335090841,7.30833,1529.1,1528.5,8.571493]
[1744335090842,0.55,1529.0,1528.5,8.571493]
[1744335091005,6.54131,1528.8,1528.5,15.113703]
[1744335091207,6.54131,1528.8,1528.6,1.5113703]
[1744335091848,6.54154,1528.7,1528.3,14.59565]
[1744335092143,6.54278,1528.4,1528.1,0.7593]
[1744335092349,0.55,1528.5,1527.8,14.5624]
[1744335092350,6.54345,1528.3,1527.8,14.5624]
[1744335092557,6.54345,1528.3,1527.9,6.54479]
[1744335092727,6.54345,1528.3,1528.0,0.654479]
[1744335093046,0.8245,1529.1,1528.1,13.3631]
[1744335093218,7.36439,1529.1,1528.7,6.54133]
[1744335093420,0.8245,1529.1,1528.8,6.54088]
[1744335093674,7.36461,1529.1,1528.7,6.54145]
[1744335093854,13.90468,1529.1,1528.7,6.54145]
[1744335094040,7.36457,1529.1,1528.7,1.59006428]
[1744335094245,6.54068,1528.9,1528.6,7.258]
[1744335094447,6.54068,1528.9,1528.6,13.79992]
[1744335094846,6.54083,1528.9,1528.3,10.258]
[1744335095019,3.8245,1529.1,1528.6,0.7593]
[1744335095221,7.36453,1529.1,1528.7,13.08251]
[1744335095767,0.8245,1529.1,1528.8,6.54104]
[1744335096063,0.8245,1529.4,1528.7,3.0]
[1744335096363,6.53908,1529.3,1529.0,0.7593]
[1744335096564,0.55,1529.3,1528.8,0.7593]
[1744335096861,0.8245,1529.4,1528.8,1.61060129]
[1744335097051,0.8245,1529.4,1529.1,6.53962]
[1744335097355,0.8245,1529.4,1529.1,13.07922]
[1744335097561,3.3863513,1529.5,1529.2,6.53936]
[1744335097761,9.9244613,1529.5,1529.1,6.5396]
[1744335098072,7.08857,1529.4,1528.9,6.54043]
[1744335098366,6.9244713,1529.5,1529.1,6.53964]
[1744335098531,6.9244713,1529.5,1529.2,6.53929]
[1744335098723,0.3863513,1529.5,1529.2,6.53914]
[1744335098923,0.3863513,1529.5,1529.3,6.53888]